lending/lending_fUSD_20250316
["ID","MTS","AMOUNT","RATE_DAILY","PERIOD"]
[356222609,1742107832456,-220.92759241,9.792e-05,2]
[356222610,1742107832467,-399.07240759,9.8e-05,3]
[356222611,1742107832496,-209.14381151,9.8e-05,3]
[356222612,1742107832505,-1000.0,9.835e-05,2]
[356222613,1742107832515,-220.92759241,9.835e-05,2]
[356222614,1742107832525,-1000.0,9.853e-05,2]
[356222615,1742107832535,-151.6101848,9.853e-05,2]
[356222616,1742107832545,-150.0,9.863e-05,2]
[356222617,1742107832555,-150.0,9.892e-05,2]
[356222618,1742107832564,-300.0,9.899e-05,2]
[356222619,1742107832575,-276.5665,9.9e-05,2]
[356222620,1742107832585,-1600.0,9.9e-05,3]
[356222621,1742107832594,-805.02654281,9.9e-05,2]
[356222622,1742107832604,-805.02654281,9.9e-05,2]
[356222623,1742107832614,-150.0,9.922e-05,2]
[356222624,1742107832623,-1000.0,9.925e-05,2]
[356222625,1742107832632,-1000.0,9.933e-05,2]
[356222626,1742107832697,-250.0,9.937e-05,2]
[356222627,1742107832707,-5362.41834005,9.99e-05,2]
[356222654,1742107838167,-5021.97682081,9.99e-05,2]
[356222655,1742107838177,-3273.995,9.999e-05,2]
[356222656,1742107838187,-500.0,9.999e-05,2]
[356222657,1742107838197,-150.0,9.999e-05,2]
[356222658,1742107838207,-8419.65909054,0.0001,2]
[356222659,1742107838301,-328.31708524,0.0001,2]
[356222688,1742107840676,-787.36,0.0001,2]
[356222689,1742107840688,-2231.24123688,0.0001,2]
[356222690,1742107840698,-63.75876312,0.0001,2]
[356222691,1742107840709,-2747.0,0.0001,2]
[356222695,1742107844861,-13751.1131112,0.0001,2]
[356222709,1742107846547,-497.06061393,0.0001,2]
[356222710,1742107846639,-3073.17019857,0.0001,2]
[356222711,1742107846650,-5.1050962,0.0001,2]
[356222712,1742107846661,-372.6,0.0001,2]
[356222714,1742108189278,164.91,9.543e-05,2]
[356222715,1742108282327,250.0,9.219e-05,2]
[356222716,1742108296523,-640.1832,9.8e-05,2]
[356222717,1742108296547,-23900.0,9.876e-05,2]
[356222718,1742108296569,-571.35174392,9.88e-05,2]
[356222719,1742108296592,-164.82,9.88e-05,2]
[356222720,1742108296615,-150.0,9.899e-05,2]
[356222721,1742108296637,-399.1435,9.9e-05,2]
[356222722,1742108296665,-9199.1881,9.9e-05,2]
[356222723,1742108296687,-2879.6168,9.9e-05,2]
[356222724,1742108296709,-1673.7546,9.9e-05,2]
[356222725,1742108296730,-200.23474676,9.95e-05,2]
[356222726,1742108296752,-5849.037172,9.994e-05,2]
[356222727,1742108296776,-929.40002185,9.999e-05,2]
[356222728,1742108296799,-500.0,9.999e-05,2]
[356222729,1742108296825,-5883.28870633,0.0001,2]
[356222730,1742108296847,-622.2949038,0.0001,2]
[356222731,1742108296870,-1000.0,0.0001,2]
[356222732,1742108296892,-1000.0,0.0001,2]
[356222733,1742108296914,-1000.0,0.0001,2]
[356222734,1742108296936,-1000.0,0.0001,2]
[356222735,1742108296962,-1000.0,0.0001,2]
[356222736,1742108296985,-1000.0,0.0001,2]
[356222737,1742108297007,-1000.0,0.0001,2]
[356222738,1742108297029,-1000.0,0.0001,2]
[356222739,1742108297052,-1000.0,0.0001,2]
[356222740,1742108297074,-1000.0,0.0001,2]
[356222741,1742108297098,-1000.0,0.0001,2]
[356222742,1742108297120,-1000.0,0.0001,2]
[356222743,1742108297144,-1000.0,0.0001,2]
[356222744,1742108297165,-1000.0,0.0001,2]
[356222745,1742108297188,-1000.0,0.0001,2]
[356222746,1742108297210,-1000.0,0.0001,2]
[356222747,1742108297232,-1000.0,0.0001,2]
[356222748,1742108297256,-1000.0,0.0001,2]
[356222749,1742108297279,-418.89465961,0.0001,2]
[356222750,1742108297305,-2420627.76763396,0.0001,2]
[356222751,1742108297327,-2034.0,0.0001,2]
[356222752,1742108297353,-1282.946,0.0001,2]
[356222753,1742108297375,-827.18750271,0.0001,2]
[356222754,1742108297397,-571.0,0.0001,2]
[356222755,1742108297418,-1419.0,0.0001,2]
[356222756,1742108297440,-641.0,0.0001,2]
[356222757,1742108297461,-787.0,0.0001,2]
[356222758,1742108297482,-907.0,0.0001,2]
[356222759,1742108297503,-541.0,0.0001,2]
[356222760,1742108297523,-1271.0,0.0001,2]
[356222761,1742108297548,-1429.0,0.0001,2]
[356222762,1742108297570,-4079.0,0.0001,2]
[356222763,1742108297594,-2200.0,0.0001,3]
[356222764,1742108297615,-155.63568503,0.0001,2]
[356222765,1742108297637,-150.222,0.0001,2]
[356222766,1742108297659,-151.0,0.0001,2]
[356222767,1742108297682,-3935.0,0.0001,2]
[356222768,1742108297704,-150.0,0.0001,2]
[356222769,1742108297726,-229.577,0.0001,2]
[356222770,1742108297747,-190.78624803,0.0001,2]
[356222771,1742108297768,-1013.0,0.0001,2]
[356222772,1742108297789,-1114.0,0.0001,2]
[356222773,1742108297811,-285.97695,0.0001,2]
[356222774,1742108297832,-315.40287068,0.0001,2]
[356222775,1742108297854,-1000.0,0.0001,2]
[356222776,1742108297875,-1000.0,0.0001,2]
[356222777,1742108297897,-1000.0,0.0001,2]
[356222778,1742108297919,-1000.0,0.0001,2]
[356222779,1742108297942,-1000.0,0.0001,2]
[356222780,1742108297963,-1000.0,0.0001,2]
[356222781,1742108297985,-1000.0,0.0001,2]
[356222782,1742108298007,-1000.0,0.0001,2]
[356222783,1742108298028,-1000.0,0.0001,2]
[356222784,1742108298051,-231.95527521,0.0001,2]
[356222785,1742108298073,-151.30899814,0.0001,2]
[356222786,1742108484302,1039.9,8.584e-05,2]
[356222790,1742109032394,-150.0,9.857e-05,2]
[356222792,1742109032404,-300.0,9.857e-05,2]
[356222793,1742109032414,-18.0419961,9.858e-05,2]
[356222794,1742109032508,-522.9580039,9.858e-05,2]
[356222795,1742109032518,-207.30295601,9.858e-05,2]
[356222796,1742109032545,-1063.69704399,9.858e-05,2]
[356222797,1742109032554,-770.35715054,9.858e-05,2]
[356222798,1742109032566,-658.64284946,9.858e-05,2]
[356222799,1742109032575,-907.0,9.858e-05,2]
[356222800,1742109032584,-3170.6741305,9.858e-05,2]
[356222801,1742109032595,-908.3258695,9.858e-05,2]
[356222802,1742109032605,-696.35540096,9.858e-05,2]
[356222808,1742109040621,-3238.64459904,9.858e-05,2]
[356222809,1742109040632,-1013.0,9.858e-05,2]
[356222810,1742109040642,-151.0,9.858e-05,2]
[356222811,1742109040651,-1114.0,9.858e-05,2]
[356222812,1742109040660,-200.0,9.955e-05,2]
[356222813,1742109040669,-500.19842901,9.973e-05,2]
[356222814,1742109040679,-81495.6782847,0.0001,2]
[356222815,1742109040691,-109670.04565541,0.0001,2]
[356222816,1742109040700,-1279.0,0.0001,2]
[356222817,1742109040709,-2034.0,0.0001,2]
[356222818,1742109040929,-1419.0,0.0001,2]
[356222819,1742109040942,-641.0,0.0001,2]
[356222820,1742109040952,-571.0,0.0001,2]
[356222821,1742109040961,-787.0,0.0001,2]
[356222822,1742109040971,-1021.57712585,0.0001,2]
[356222823,1742109040980,-238.31413,0.0001,2]
[356222824,1742109040989,-463.4425866,0.0001004,2]
[356222825,1742109040999,-2601.6538856,0.00010047,2]
[356222826,1742109041009,-4815.2505386,0.00010054,2]
[356222827,1742109041018,-164.91,0.00010068,2]
[356222828,1742109041027,-1521.77,0.00010069,2]
[356222829,1742109041038,-499.99,0.00010069,2]
[356222830,1742109041048,-3032.25,0.00010069,2]
[356222831,1742109041057,-753.0,0.000101,2]
[356222832,1742109041066,-30353.92,0.000101,2]
[356222833,1742109041075,-150.99,0.000101,2]
[356222834,1742109041085,-277.25,0.000101,2]
[356222835,1742109041094,-12806.74425558,0.0001015,2]
[356222836,1742109041103,-242.1,0.00010224,2]
[356222837,1742109041113,-399.2278334,0.00010263,2]
[356222838,1742109041122,-171.49,0.00010371,2]
[356222839,1742109041131,-268.59002835,0.00010474,2]
[356222840,1742109041139,-257.78535175,0.00010474,2]
[356222841,1742109041148,-450.57368258,0.00010474,2]
[356222842,1742109041157,-1725.13,0.00010475,2]
[356222843,1742109041166,-299.99,0.00010475,2]
[356222844,1742109041175,-397.16,0.00010475,2]
[356222845,1742109041184,-5851.52,0.00010475,2]
[356222846,1742109041193,-999.99,0.00010475,2]
[356222847,1742109041202,-9218.04,0.00010475,2]
[356222848,1742109041211,-6457.27,0.00010475,2]
[356222849,1742109041221,-739.35,0.00010502,2]
[356222850,1742109041230,-751.85,0.00010502,2]
[356222851,1742109041239,-1000.0,0.00010502,2]
[356222852,1742109041248,-739.35,0.00010529,2]
[356222853,1742109041257,-399.2278334,0.0001053,2]
[356222854,1742109041266,-739.35,0.00010557,2]
[356222855,1742109041275,-739.35,0.00010585,2]
[356222856,1742109041284,-164.91,0.00010593,2]
[356222858,1742109041292,-739.35,0.00010612,2]
[356222859,1742109041301,-268.57,0.00010634,2]
[356222860,1742109041310,-739.35,0.0001064,2]
[356222861,1742109041318,-268.57,0.00010662,2]
[356222862,1742109041327,-739.35,0.00010668,2]
[356222863,1742109041336,-268.57,0.0001069,2]
[356222864,1742109041344,-739.35,0.00010695,2]
[356222865,1742109041357,-268.57,0.00010717,2]
[356222866,1742109041366,-739.35,0.00010723,2]
[356222867,1742109041375,-268.57,0.00010745,2]
[356222868,1742109041383,-739.35,0.0001075,2]
[356222869,1742109041391,-268.57,0.00010773,2]
[356222870,1742109041402,-739.35,0.00010778,2]
[356222871,1742109041412,-268.57,0.00010801,2]
[356222872,1742109041421,-739.35,0.00010806,2]
[356222873,1742109041433,-268.57,0.00010829,2]
[356222874,1742109041442,-739.35,0.00010833,2]
[356222875,1742109041450,-255.0,0.00010843,2]
[356222876,1742109041459,-420.0,0.00010843,2]
[356222877,1742109041468,-1039.9,0.00010848,2]
[356222878,1742109041478,-268.57,0.00010857,2]
[356222879,1742109041486,-739.35,0.00010861,2]
[356222880,1742109041495,-268.57,0.00010885,2]
[356222881,1742109041504,-739.35,0.00010889,2]
[356222882,1742109041526,-399.2278334,0.00010908,2]
[356222883,1742109041537,-153.41653484,0.00010913,2]
[356222884,1742109041546,-150.0,0.00010913,2]
[356222885,1742109041555,-500.0,0.00010913,2]
[356222886,1742109041564,-500.0,0.00010913,2]
[356222887,1742109041573,-268.57,0.00010913,2]
[356222888,1742109041583,-739.35,0.00010916,2]
[356222889,1742109041592,-168.85,0.00010933,2]
[356222890,1742109041601,-150.0,0.0001094,2]
[356222891,1742109041610,-500.0,0.0001094,2]
[356222892,1742109041620,-500.0,0.0001094,2]
[356222893,1742109041629,-268.57,0.00010941,2]
[356222894,1742109041638,-739.35,0.00010944,2]
[356222895,1742109041650,-200.0,0.00010959,2]
[356222896,1742109041658,-150.0,0.00010959,2]
[356222897,1742109041666,-209.42718912,0.00010968,2]
[356222898,1742109041672,-500.0,0.00010968,2]
[356222899,1742109041680,-583.64930499,0.00010968,2]
[356222900,1742109041690,-268.57,0.00010969,2]
[356222901,1742109041700,-739.35,0.00010972,2]
[356222902,1742109041710,-500.0,0.00010995,2]
[356222903,1742109041720,-268.57,0.00010997,2]
[356222904,1742109041730,-739.35,0.00010999,2]
[356222905,1742109041740,-1515.9133495,0.00011,2]
[356222906,1742109041750,-3189.65949469,0.00011,2]
[356222907,1742109042117,-4967.97942651,0.00011,2]
[356222908,1742109042127,-500.0,0.00011023,2]
[356222909,1742109042138,-268.57,0.00011025,2]
[356222910,1742109042147,-739.35,0.00011027,2]
[356222911,1742109042157,-500.0,0.00011041,2]
[356222912,1742109042167,-500.0,0.0001105,2]
[356222913,1742109042176,-268.57,0.00011053,2]
[356222914,1742109042186,-692.0,0.00011077,2]
[356222915,1742109042196,-268.57,0.00011081,2]
[356222916,1742109042207,-11672.19328451,0.00011099,2]
[356222917,1742109042219,-3229.24431149,0.00011099,2]
[356222918,1742109042361,-282.37288876,0.00011099,2]
[356222919,1742109042372,-268.57,0.00011109,2]
[356222920,1742109042382,-164.91,0.00011118,2]
[356222921,1742109042392,-268.57,0.00011137,2]
[356222922,1742109042402,-491.87386388,0.00011141,2]
[356222923,1742109042414,-28757.79734557,0.00011141,2]
[356222924,1742109042424,-268.57,0.00011165,2]
[356222925,1742109042436,-14232.3695758,0.00011169,2]
[356222926,1742109042448,-2090.40897658,0.00011169,2]
[356222927,1742109042473,-2873.36680194,0.00011169,2]
[356222928,1742109042483,-399.22783341,0.00011173,2]
[356222929,1742109042493,-1521.77,0.00011327,2]
[356222930,1742109042503,-164.82,0.00011527,2]
[356222931,1742109042512,-751.85,0.00011814,2]
[356222932,1742109042522,-125.96536465,0.00011814,2]
[356222933,1742109042538,-362.62483261,0.00011814,2]
[356222934,1742109042550,-511.40980274,0.00011814,2]
[356222935,1742109042560,-433.0,0.00011927,2]
[356222936,1742109042569,-587.0,0.00011927,2]
[356222937,1742109042579,-1291.47367994,0.00012,2]
[356222938,1742109042591,-270.49264533,0.00012,2]
[356222939,1742109042603,-372.50946649,0.00012,2]
[356222940,1742109042635,-1135.22480345,0.00012,2]
[356222941,1742109042645,-966.68000622,0.00012087,2]
[356222942,1742109042656,-1728.77262585,0.00012087,2]
[356222943,1742109042668,-493.98587737,0.00012087,2]
[356222944,1742109042698,-1672.7950376,0.00012087,2]
[356222945,1742109042710,-1094.0,0.00012087,2]
[356222951,1742109044340,-2388.32303962,0.00012087,2]
[356222952,1742109044394,-1025.42341334,0.00012087,2]
[356222953,1742109044404,-1112.38909952,0.00012586,2]
[356222954,1742109044415,-254.39513532,0.00012586,2]
[356222955,1742109044429,-154.98576516,0.00012586,2]
[356222956,1742109044438,-541.0,0.00012858,2]
[356222957,1742109044448,-1271.0,0.00012858,2]
[356222958,1742109044458,-1429.0,0.00012858,2]
[356222959,1742109044467,-907.0,0.00012858,2]
[356222960,1742109044479,-4079.0,0.00012858,2]
[356222961,1742109044488,-3935.0,0.00012858,2]
[356222962,1742109044498,-1013.0,0.00012858,2]
[356222963,1742109044508,-151.0,0.00012858,2]
[356222964,1742109044518,-404.76,0.00012858,2]
[356222965,1742109044528,-322.68859954,0.000129,2]
[356222966,1742109044537,-151.0,0.00012932,2]
[356222967,1742109044547,-167.997737,0.00012932,2]
[356222968,1742109044556,-151.0,0.00012932,2]
[356222969,1742109044566,-159.870524,0.00012932,2]
[356222970,1742109044575,-151.0,0.00012932,2]
[356222971,1742109044586,-151.0,0.00012932,2]
[356222972,1742109044596,-151.0,0.00012932,2]
[356222973,1742109044605,-151.0,0.00012932,2]
[356222974,1742109044615,-151.0,0.00012932,2]
[356222975,1742109044624,-151.0,0.00012932,2]
[356222976,1742109044634,-295.303894,0.00012932,2]
[356222977,1742109044643,-151.0,0.00012932,2]
[356222978,1742109044653,-151.0,0.00012932,2]
[356222979,1742109044662,-151.0,0.00012932,2]
[356222980,1742109044672,-707.0,0.00012972,2]
[356222981,1742109044682,-502.93996247,0.00012973,2]
[356222982,1742109044691,-150.0,0.00013,2]
[356222983,1742109044701,-150.0,0.00013,2]
[356222984,1742109044710,-151.0,0.00013,2]
[356222985,1742109044721,-151.0,0.00013,2]
[356222986,1742109044731,-151.0,0.00013,2]
[356222987,1742109044741,-151.0,0.00013,2]
[356222988,1742109044750,-151.0,0.00013,2]
[356222989,1742109044760,-299.682603,0.00013,2]
[356222990,1742109044770,-151.0,0.00013,2]
[356222991,1742109044780,-151.0,0.00013,2]
[356222992,1742109044790,-151.654567,0.00013,2]
[356222993,1742109044799,-151.0,0.00013,2]
[356222994,1742109044809,-1279.0,0.00013,2]
[356222995,1742109044819,-2034.0,0.00013,2]
[356222996,1742109044829,-1419.0,0.00013,2]
[356222997,1742109044839,-641.0,0.00013,2]
[356222998,1742109044849,-571.0,0.00013,2]
[356222999,1742109044859,-787.0,0.00013,2]
[356223000,1742109044869,-250.0,0.00013024,2]
[356223001,1742109044879,-1039.9,0.00013112,2]
[356223002,1742109044889,-736.0,0.0001312,2]
[356223003,1742109044899,-823.0,0.0001312,2]
[356223004,1742109044909,-751.85,0.00013127,2]
[356223005,1742109044919,-1000.0,0.00013127,2]
[356223006,1742109044929,-164.82,0.00013174,2]
[356223007,1742109044939,-15064.11052165,0.00013507,2]
[356223008,1742109044956,-119.69996302,0.00013507,2]
[356223009,1742109044967,-151.08,0.00013699,2]
[356223010,1742109044978,-151.08378709,0.00013699,2]
[356223011,1742109044988,-159.54,0.00013699,2]
[356223012,1742109044998,-159.54,0.00013699,2]
[356223013,1742109045008,-159.54920336,0.00013699,2]
[356223014,1742109045018,-200.0,0.00013699,2]
[356223015,1742109045027,-151.0,0.000137,2]
[356223016,1742109045037,-151.0,0.000137,2]
[356223017,1742109045047,-151.777275,0.000137,2]
[356223018,1742109045057,-151.0,0.000137,2]
[356223019,1742109045066,-151.0,0.000137,2]
[356223020,1742109045076,-151.0,0.000137,2]
[356223021,1742109045085,-151.0,0.000137,2]
[356223022,1742109045095,-151.0,0.000137,2]
[356223023,1742109045104,-151.0,0.000137,2]
[356223024,1742109045114,-151.0,0.000137,2]
[356223025,1742109045123,-151.0,0.000137,2]
[356223026,1742109045133,-7711.41979488,0.000137,2]
[356223027,1742109046938,-457.46955249,0.000137,2]
[356223028,1742109047169,-500.0,0.00013699,2]
[356223029,1742109047178,-108.83533071,0.000137,2]
[356223030,1742109047190,-5969.66532192,0.000137,2]
[356223031,1742109047199,-429.0,0.00013753,2]
[356223032,1742109047208,-151.0,0.00013844,2]
[356223033,1742109047217,-1521.77,0.00013844,2]
[356223034,1742109047227,-371.2138378,0.0001385,2]
[356223036,1742110050842,-150.0,9.999e-05,2]
[356223037,1742110050867,-188.01301984,9.999e-05,2]
[356223038,1742110050893,-180.44974623,9.999e-05,2]
[356223039,1742110050918,-315.4015778,9.999e-05,2]
[356223040,1742110050944,-80866.13565613,0.0001,2]
[356223044,1742110073832,373.40242115,8e-05,2]
[356223045,1742110073881,732.87045554,8e-05,2]
[356223048,1742110110525,-200.0,0.0001,3]
[356223053,1742110123397,-220.78110446,9.999e-05,2]
[356223054,1742110123422,-178.23103818,0.0001,2]
[356223055,1742110123450,-84551.84672605,0.0001,2]
[356223056,1742110123476,-16349.14113131,0.0001,2]
[356223100,1742110237651,-199.90167644,9.999e-05,3]
[356223101,1742110237661,-300.0,9.999e-05,2]
[356223102,1742110237670,-312.48527811,0.0001,2]
[356223125,1742110243714,-41963.43808492,0.0001,2]
[356223126,1742110243726,-679143.13710091,0.0001,2]
[356223127,1742110243739,-1213589.96023481,0.0001,2]
[356223128,1742110243750,-154.86986133,0.00010085,2]
[356223129,1742110243763,-1330.23383848,0.00010185,2]
[356223130,1742110243775,-1419.0,0.00010385,2]
[356223131,1742110243786,-641.0,0.00010385,2]
[356223132,1742110243797,-571.0,0.00010385,2]
[356223133,1742110243808,-787.0,0.00010385,2]
[356223134,1742110243819,-1271.0,0.00010385,2]
[356223135,1742110243831,-1429.0,0.00010385,2]
[356223136,1742110243843,-541.0,0.00010385,2]
[356223137,1742110243856,-4079.0,0.00010385,2]
[356223138,1742110243868,-907.0,0.00010385,2]
[356223139,1742110243879,-1013.0,0.00010385,2]
[356223140,1742110243890,-3935.0,0.00010385,2]
[356223141,1742110243901,-151.0,0.00010385,2]
[356223142,1742110243912,-151.0,0.00010385,2]
[356223143,1742110243922,-1279.0,0.00010385,2]
[356223144,1742110243933,-167.42,0.00010502,2]
[356223145,1742110243944,-241.12,0.00010502,2]
[356223146,1742110243954,-250.0,0.00010502,2]
[356223147,1742110243966,-495.74,0.00010502,2]
[356223148,1742110243980,-23900.0,0.00010502,2]
[356223149,1742110243993,-157.3782705,0.000109,2]
[356223150,1742110244003,-150.0,0.00010959,2]
[356223151,1742110244013,-242.13,0.00010959,2]
[356223152,1742110244023,-999.99,0.00010959,2]
[356223153,1742110244033,-2640.13,0.00010959,2]
[356223154,1742110244044,-150.99,0.00010959,2]
[356223155,1742110244056,-420.0,0.00010999,2]
[356223156,1742110244068,-150.99,0.00010999,2]
[356223157,1742110244080,-13966.73515854,0.00011099,2]
[356223158,1742110244092,-2207.7,0.00011099,2]
[356223159,1742110244104,-495.74,0.00011814,2]
[356223160,1742110244115,-587.0,0.00012099,2]
[356223161,1742110244126,-6206.9499572,0.00012184,2]
[356223162,1742110244136,-150.41,0.00013,2]
[356223163,1742110244146,-150.41,0.00013,2]
[356223164,1742110244158,-150.41,0.00013,2]
[356223165,1742110244169,-150.41,0.00013,2]
[356223167,1742110244183,-150.41,0.00013,2]
[356223169,1742110244194,-150.41,0.00013,2]
[356223172,1742110244205,-150.41,0.00013,2]
[356223174,1742110244215,-500.0,0.00013011,2]
[356223176,1742110244225,-500.0,0.00013011,2]
[356223178,1742110244236,-500.0,0.00013011,2]
[356223180,1742110244247,-500.0,0.00013011,2]
[356223182,1742110244258,-500.0,0.00013011,2]
[356223185,1742110244269,-500.0,0.00013011,2]
[356223187,1742110244280,-500.0,0.00013011,2]
[356223189,1742110244291,-500.0,0.00013011,2]
[356223191,1742110244302,-500.0,0.00013011,2]
[356223192,1742110244312,-503.0,0.00013011,2]
[356223193,1742110244323,-13966.73515852,0.00013011,2]
[356223194,1742110244334,-495.74,0.00013127,2]
[356223195,1742110244345,-250.0,0.00013212,2]
[356223196,1742110244355,-823.0,0.00013309,2]
[356223197,1742110244366,-1419.0,0.00013385,2]
[356223198,1742110244376,-641.0,0.00013385,2]
[356223199,1742110244387,-571.0,0.00013385,2]
[356223200,1742110244398,-787.0,0.00013385,2]
[356223201,1742110244409,-1271.0,0.00013385,2]
[356223202,1742110244419,-1429.0,0.00013385,2]
[356223203,1742110244430,-541.0,0.00013385,2]
[356223204,1742110244441,-4079.0,0.00013385,2]
[356223205,1742110244452,-907.0,0.00013385,2]
[356223206,1742110244462,-1423.66,0.00013385,2]
[356223207,1742110244473,-299.99,0.00013385,2]
[356223208,1742110244484,-152.52,0.00013385,2]
[356223209,1742110244495,-7040.75,0.00013385,2]
[356223210,1742110244506,-642.8,0.00013385,2]
[356223211,1742110244517,-1013.0,0.00013385,2]
[356223212,1742110244528,-3935.0,0.00013385,2]
[356223213,1742110244539,-151.0,0.00013385,2]
[356223214,1742110244550,-1279.0,0.00013385,2]
[356223215,1742110244561,-1236.0,0.000135,2]
[356223216,1742110244572,-1053.58554099,0.00013573,2]
[356223217,1742110244583,-5000.0,0.000136,2]
[356223218,1742110244594,-7123.7,0.000137,2]
[356223219,1742110244605,-7123.7,0.000137,2]
[356223220,1742110244616,-1000.0,0.00013736,2]
[356223221,1742110244626,-200.0,0.00013739,2]
[356223222,1742110244637,-5000.0,0.0001382,2]
[356223223,1742110244648,-225.53334,0.0001385,10]
[356223224,1742110244659,-1119.4387447,0.00013892,2]
[356223225,1742110244670,-3641.8107248,0.00013892,2]
[356223226,1742110244680,-2701.0719873,0.00013892,2]
[356223227,1742110244692,-2938.69975909,0.000139,7]
[356223228,1742110244702,-344.0710113,0.00013901,2]
[356223229,1742110244713,-3628.9602833,0.0001391,2]
[356223230,1742110244723,-587.0,0.0001392,2]
[356223231,1742110244734,-1099.59,0.00013949,2]
[356223232,1742110244745,-1897.35205902,0.00014368,2]
[356223233,1742110244756,-751.85,0.0001444,2]
[356223234,1742110244767,-495.74,0.0001444,2]
[356223235,1742110244777,-197.32,0.00014533,2]
[356223236,1742110244788,-1152.0,0.0001464,2]
[356223237,1742110244800,-241.12,0.00014702,2]
[356223238,1742110244812,-150.0,0.000148,2]
[356223239,1742110244822,-22973.91589647,0.000151,2]
[356223240,1742110244833,-152.015738,0.00015103,2]
[356223241,1742110244843,-301.02,0.0001523,2]
[356223242,1742110244854,-153.30843714,0.00015233,2]
[356223243,1742110244865,-180.74957629,0.00015233,2]
[356223244,1742110244875,-163.20880909,0.00015233,2]
[356223245,1742110244886,-308.5325714,0.00015233,2]
[356223246,1742110244897,-475.52940775,0.00015233,2]
[356223247,1742110244907,-501.54713288,0.00015233,2]
[356223248,1742110244919,-179.86,0.00015241,2]
[356223249,1742110244930,-458.43,0.00015265,2]
[356223250,1742110244940,-3234.0,0.00015301,5]
[356223251,1742110244952,-3234.0,0.00015301,5]
[356223252,1742110244962,-3234.0,0.00015301,5]
[356223253,1742110244973,-3234.0,0.00015301,5]
[356223254,1742110244984,-3236.0,0.00015301,5]
[356223255,1742110244994,-3234.0,0.00015301,5]
[356223256,1742110245005,-1844.18040479,0.00015416,2]
[356223257,1742110245017,-331.88,0.00015452,2]
[356223258,1742110245027,-152.11219562,0.00015533,2]
[356223259,1742110245039,-266.39,0.0001565,2]
[356223260,1742110245051,-1532.10915944,0.00015718,2]
[356223261,1742110245062,-751.85,0.00015753,2]
[356223262,1742110245076,-167.42,0.00015753,2]
[356223263,1742110245087,-495.74,0.00015753,2]
[356223264,1742110245098,-1330.23383843,0.00015914,2]
[356223265,1742110245108,-200.0,0.00015918,2]
[356223266,1742110245119,-1000.0,0.00015918,2]
[356223267,1742110245131,-202.42,0.00015918,2]
[356223268,1742110245142,-200.0,0.0001599,2]
[356223269,1742110245155,-150.0,0.00016,2]
[356223270,1742110245165,-150.0,0.00016,2]
[356223271,1742110245176,-679.0,0.00016103,2]
[356223272,1742110245187,-13966.73515852,0.00016122,2]
[356223273,1742110245200,-2547.30894853,0.000162,2]
[356223274,1742110245212,-2547.30894835,0.000162,2]
[356223275,1742110245223,-2547.30894835,0.000162,2]
[356223276,1742110245234,-2547.30894835,0.000162,2]
[356223277,1742110245245,-1099.59,0.00016213,2]
[356223278,1742110245256,-179.45,0.00016255,2]
[356223279,1742110245267,-1419.0,0.00016385,2]
[356223280,1742110245278,-641.0,0.00016385,2]
[356223281,1742110245288,-571.0,0.00016385,2]
[356223282,1742110245300,-787.0,0.00016385,2]
[356223283,1742110245311,-1271.0,0.00016385,2]